bitfinex-derivatives/quotes_BTCF0:USTF0_20241208
["timestamp","ask_amount","ask_price","bid_price","bid_amount"]
[1733672852439,0.1039,99769.0,99768.0,0.07650595]
[1733672853340,0.014,99769.0,99768.0,0.17673798]
[1733672853544,0.014,99769.0,99768.0,0.18300156]
[1733672855847,0.014,99769.0,99768.0,0.18613333]
[1733672857938,0.0944,99783.0,99768.0,0.14105933]
[1733672858145,9.823e-05,99785.0,99782.0,0.405868]
[1733672858443,9.823e-05,99785.0,99783.0,0.01440594]
[1733672858643,9.823e-05,99785.0,99784.0,0.02671333]
[1733672858840,9.823e-05,99785.0,99784.0,0.12693029]
[1733672859144,9.823e-05,99785.0,99784.0,0.07178033]
[1733672859340,0.0972,99799.0,99784.0,0.17210739]
[1733672859538,0.0972,99799.0,99798.0,0.40586]
[1733672859740,0.0972,99799.0,99798.0,0.4108712]
[1733672860140,0.0972,99799.0,99798.0,0.51108013]
[1733672860343,0.0972,99799.0,99798.0,0.51734239]
[1733672860753,0.0992,99799.0,99798.0,0.51834239]
[1733672860944,0.0992,99799.0,99798.0,0.52147416]
[1733672861449,0.1012,99799.0,99798.0,0.52147416]
[1733672861637,0.004,99799.0,99798.0,0.52147416]
[1733672861845,0.0953,99821.0,99818.0,0.045051]
[1733672862057,0.0953,99821.0,99818.0,0.05319397]
[1733672862243,0.0953,99821.0,99818.0,0.05945495]
[1733672862547,0.0953,99821.0,99818.0,0.15965689]
[1733672862754,0.0953,99821.0,99818.0,0.15339587]
[1733672862949,0.0953,99821.0,99818.0,0.15652389]
[1733672863455,0.0953,99821.0,99818.0,0.16552389]
[1733672863751,0.0011058,99819.0,99818.0,0.16239212]
[1733672864148,0.0011058,99819.0,99818.0,0.15439212]
[1733672864553,0.0011058,99819.0,99818.0,0.05419022]
[1733672868156,0.0011058,99819.0,99818.0,0.15472958]
[1733672868345,0.0011058,99819.0,99818.0,0.15437205]
[1733672869057,0.0011058,99819.0,99818.0,0.16666869]
[1733672870355,0.0011058,99819.0,99818.0,0.15437205]
[1733672870551,0.0011058,99819.0,99818.0,0.1666864]
[1733672870860,0.0011058,99819.0,99818.0,0.17294721]
[1733672871451,0.141044,99836.0,99835.0,0.045044]
[1733672871661,0.141044,99836.0,99835.0,0.05980252]
[1733672871856,0.096,99836.0,99835.0,0.00219417]
[1733672872057,0.096,99836.0,99835.0,0.04723817]
[1733672872950,0.096,99836.0,99835.0,0.01019417]
[1733672873152,0.141043,99836.0,99835.0,0.01019417]
[1733672873456,0.141043,99836.0,99835.0,0.01919417]
[1733672875354,0.161043,99836.0,99835.0,0.01919417]
[1733672876652,0.161043,99836.0,99813.0,0.045053]
[1733672876653,0.045053,99815.0,99813.0,0.045053]
[1733672876853,0.1808,99814.0,99813.0,0.045053]
[1733672877058,0.045047,99829.0,99828.0,0.045047]
[1733672877260,0.1808,99835.0,99823.0,0.3608]
[1733672877464,0.1808,99835.0,99833.0,0.045045]
[1733672878463,0.045044,99834.0,99833.0,0.045045]
[1733672878652,0.1808,99835.0,99825.0,0.09647815]
[1733672878852,0.045046,99831.0,99825.0,0.09647815]
[1733672879372,0.045046,99831.0,99829.0,0.045046]
[1733672880159,0.045046,99831.0,99830.0,0.01565141]
[1733672880365,0.045046,99831.0,99830.0,0.00626069]
[1733672880968,0.046046,99831.0,99830.0,0.00626069]
[1733672882968,0.046046,99831.0,99830.0,0.01526069]
[1733672883162,0.047046,99831.0,99830.0,0.02326069]
[1733672883866,0.047046,99831.0,99830.0,0.02639104]
[1733672884862,0.047046,99831.0,99830.0,0.02013035]
[1733672886569,0.02450836,99831.0,99830.0,0.02013035]
[1733672886875,0.02450836,99831.0,99830.0,0.02513871]
[1733672887175,0.02450836,99831.0,99830.0,0.02513858]
[1733672887363,0.17310403,99831.0,99830.0,0.02513858]
[1733672887676,0.17310403,99831.0,99830.0,0.017]
[1733672887871,0.17425828,99831.0,99830.0,0.017]
[1733672888275,0.07319435,99831.0,99830.0,0.017]
[1733672888674,0.1031944,99831.0,99830.0,0.02513858]
[1733672888969,0.0731944,99831.0,99830.0,0.02513858]
[1733672889372,0.0731977,99831.0,99830.0,0.02513858]
[1733672889775,0.0731977,99831.0,99830.0,0.02200836]
[1733672889969,0.0731977,99831.0,99830.0,0.017]
[1733672890171,0.17108217,99831.0,99830.0,0.02513914]
[1733672890367,0.36622114,99831.0,99830.0,0.02513914]
[1733672891475,0.37622114,99831.0,99830.0,0.02549983]
[1733672891968,0.37622114,99831.0,99830.0,0.02549993]
[1733672892164,0.19726315,99831.0,99830.0,0.02549993]
[1733672892370,0.19726315,99831.0,99830.0,0.03755105]
[1733672892565,0.19726315,99831.0,99830.0,0.13772083]
[1733672892566,0.14857381,99831.0,99830.0,0.13772083]
[1733672892762,0.29864114,99831.0,99830.0,0.12530892]
[1733672892966,0.14857381,99831.0,99830.0,0.13771781]
[1733672893369,0.15457381,99831.0,99830.0,0.12171781]
[1733672893567,0.15957381,99831.0,99830.0,0.12171781]
[1733672893869,0.013,99831.0,99830.0,0.12171781]
[1733672894171,0.00011933,99847.0,99846.0,0.045039]
[1733672894367,0.00011933,99847.0,99846.0,0.41397814]
[1733672894576,0.04879968,99847.0,99846.0,0.41397814]
[1733672894771,0.00011933,99847.0,99846.0,0.51414792]
[1733672895369,0.00011933,99847.0,99846.0,0.52654353]
[1733672895870,0.00011933,99847.0,99846.0,0.52754353]
[1733672896272,0.2807,99874.0,99848.0,0.045038]
[1733672896575,0.045031,99864.0,99862.0,0.045032]
[1733672896874,0.045031,99864.0,99863.0,0.00813663]
[1733672897069,0.09370395,99864.0,99863.0,0.00813663]
[1733672897270,0.09370395,99864.0,99863.0,0.00849674]
[1733672897764,0.09370395,99864.0,99863.0,0.00813663]
[1733672897967,0.09370395,99864.0,99863.0,0.00849674]
[1733672898370,0.09370395,99864.0,99863.0,0.00813663]
[1733672898574,0.04867295,99864.0,99863.0,0.00813663]
[1733672898771,0.00011062,99873.0,99863.0,0.10863342]
[1733672898977,0.00011062,99873.0,99871.0,0.045028]
[1733672899167,0.00011062,99873.0,99872.0,0.00312947]
[1733672899372,0.00011062,99873.0,99872.0,0.00813663]
[1733672900370,0.00011062,99873.0,99872.0,0.10826429]
[1733672900576,0.00011062,99873.0,99872.0,0.00913663]
[1733672901673,0.11971285,99873.0,99872.0,0.00913663]
[1733672901873,0.00011062,99873.0,99872.0,0.00913663]
[1733672902579,0.01011062,99873.0,99865.0,0.001]
[1733672902780,0.11957082,99869.0,99866.0,0.00813582]
[1733672902967,0.045033,99861.0,99860.0,0.01287398]
[1733672903173,0.045033,99861.0,99858.0,0.045033]
[1733672903578,0.045033,99860.0,99858.0,0.045033]
[1733672903977,0.0921,99859.0,99858.0,0.045033]
[1733672904178,0.045037,99853.0,99852.0,0.04539611]
[1733672904376,0.0963,99858.0,99852.0,0.01235492]
[1733672904573,0.0963,99858.0,99847.0,0.04539911]
[1733672904772,0.045037,99850.0,99849.0,0.045038]
[1733672904968,0.045037,99850.0,99849.0,0.05739964]
[1733672908594,0.04504,99844.0,99843.0,0.00104]
[1733672908780,0.04504,99844.0,99835.0,0.3608]
[1733672908781,0.0955,99849.0,99835.0,0.3608]
[1733672908984,0.045043,99837.0,99836.0,0.01236806]
[1733672909377,0.3608,99844.0,99835.0,0.01232656]
[1733672909587,0.0914,99836.0,99831.0,0.04515472]
[1733672909879,0.045045,99832.0,99831.0,0.04515472]
[1733672910276,0.089,99835.0,99834.0,0.045044]
[1733672910479,0.11957082,99846.0,99839.0,0.045042]
[1733672910683,0.52540682,99852.0,99848.0,0.045038]
[1733672910979,0.00052001,99852.0,99848.0,0.045038]
[1733672911183,0.04503,99867.0,99857.0,0.045034]
[1733672911381,0.17990208,99877.0,99857.0,0.045034]
[1733672911382,0.04503,99866.0,99865.0,0.04503]
[1733672912383,0.04503,99866.0,99859.0,0.3608]
[1733672912384,0.48089083,99872.0,99859.0,0.3608]
[1733672912680,0.045029,99868.0,99867.0,0.045029]
[1733672912875,0.36132001,99872.0,99867.0,0.00500669]
[1733672913080,0.00011062,99873.0,99872.0,0.045027]
[1733672913575,0.00011062,99873.0,99872.0,0.05003339]
[1733672914282,0.00011062,99873.0,99872.0,0.05103339]
[1733672914684,0.00011062,99873.0,99872.0,0.05416238]
[1733672914881,0.00011062,99873.0,99872.0,0.15429004]
[1733672915081,0.00011062,99873.0,99872.0,0.16664582]
[1733672916783,0.00011062,99873.0,99872.0,0.17938763]
[1733672916975,0.00011062,99873.0,99872.0,0.17838763]
[1733672917576,0.11957082,99895.0,99893.0,0.045018]
[1733672917877,0.11957082,99896.0,99884.0,0.3608]
[1733672918184,0.045018,99893.0,99891.0,0.045018]
[1733672919480,0.045018,99893.0,99891.0,0.052018]
[1733672920186,0.16458882,99893.0,99891.0,0.007]
[1733672920483,0.045018,99893.0,99891.0,0.061018]
[1733672921086,0.16458882,99893.0,99891.0,0.061018]
[1733672921290,0.16458882,99893.0,99892.0,0.00312846]
[1733672922089,0.045018,99893.0,99892.0,0.00312846]
[1733672922484,0.045018,99893.0,99892.0,0.01012846]
[1733672923181,0.045018,99893.0,99892.0,0.01912846]
[1733672925186,0.055018,99893.0,99892.0,0.01912846]
[1733672925391,0.20448837,99893.0,99870.0,0.09647815]
[1733672925588,0.11959766,99886.0,99878.0,0.045024]
[1733672925784,0.11959766,99883.0,99879.0,0.00500598]
[1733672926092,0.11959766,99885.0,99884.0,0.045022]
[1733672926278,0.28162001,99897.0,99885.0,0.045022]
[1733672926279,0.11959766,99886.0,99885.0,0.045022]
[1733672926483,0.11959766,99886.0,99885.0,0.05002798]
[1733672926684,0.11959766,99886.0,99885.0,0.41082798]
[1733672926882,0.045019,99891.0,99885.0,0.41082798]
[1733672926883,0.11959766,99888.0,99887.0,0.045021]
[1733672927091,0.11959766,99888.0,99887.0,0.0500266]
[1733672927279,0.11959893,99888.0,99887.0,0.0050056]
[1733672927482,0.11959893,99890.0,99889.0,0.04502]
[1733672927684,0.16461385,99891.0,99885.0,0.3608]
[1733672927880,0.11959485,99890.0,99886.0,0.00500563]
[1733672928083,0.045019,99891.0,99890.0,0.045019]
[1733672928796,0.045019,99891.0,99890.0,0.05002463]
[1733672928987,0.16461385,99891.0,99890.0,0.05002463]
[1733672929294,0.16461385,99891.0,99890.0,0.05002456]
[1733672929588,0.16461385,99891.0,99890.0,0.05002457]
[1733672929986,0.045019,99891.0,99890.0,0.05002457]
[1733672930187,0.045019,99891.0,99890.0,0.045019]
[1733672930384,0.054019,99891.0,99890.0,0.046019]
[1733672930587,0.056019,99891.0,99890.0,0.046019]
[1733672935290,0.17561385,99891.0,99890.0,0.046019]
[1733672936889,0.056019,99891.0,99890.0,0.046019]
[1733672937091,0.056019,99891.0,99890.0,0.05102453]
[1733672937693,0.056019,99891.0,99890.0,0.05415299]
[1733672940296,0.10467747,99891.0,99890.0,0.05415299]
[1733672940790,0.47547747,99891.0,99890.0,0.00913399]
[1733672942995,0.045026,99876.0,99875.0,0.045026]
[1733672943196,0.09368447,99876.0,99875.0,0.05742702]
[1733672943399,0.09368447,99876.0,99875.0,0.01240102]
[1733672943600,0.09368447,99876.0,99870.0,0.045028]
[1733672943601,0.045028,99872.0,99870.0,0.045028]
[1733672943801,0.15003134,99873.0,99872.0,0.045027]
[1733672943998,0.12001025,99874.0,99872.0,0.045027]
[1733672944307,0.09025701,99875.0,99874.0,0.045027]
[1733672944501,0.002,99876.0,99875.0,0.045026]
[1733672944711,0.004,99876.0,99875.0,0.05739885]
[1733672945002,0.17996316,99890.0,99875.0,0.15752801]
[1733672945203,0.17996316,99890.0,99889.0,0.04502]
[1733672946807,0.17996316,99890.0,99885.0,0.3608]
[1733672946808,0.17996316,99891.0,99890.0,0.045019]
[1733672947595,0.17996316,99892.0,99885.0,0.54087596]
[1733672947799,0.17996316,99892.0,99891.0,0.045019]
[1733672948199,0.17996316,99892.0,99891.0,0.05127587]
[1733672948700,0.22498116,99892.0,99891.0,0.05127587]
[1733672949806,0.22798116,99892.0,99891.0,0.05127587]
[1733672949995,0.22998116,99892.0,99891.0,0.05127587]
[1733672950395,0.22998116,99892.0,99891.0,0.046019]
[1733672950396,0.047018,99892.0,99891.0,0.046019]
[1733672950603,0.048018,99892.0,99891.0,0.046019]
[1733672950807,0.050018,99892.0,99891.0,0.046019]
[1733672951006,0.050018,99892.0,99891.0,0.0522759]
[1733672952900,0.050018,99892.0,99891.0,0.05853279]
[1733672953201,0.050018,99892.0,99891.0,0.06353833]
[1733672955103,0.050018,99892.0,99891.0,0.06666676]
[1733672956109,0.050018,99892.0,99891.0,0.06666705]
[1733672957907,0.22998116,99892.0,99891.0,0.06666705]
[1733672959108,0.27875441,99892.0,99891.0,0.06666705]
[1733672959508,0.09867647,99892.0,99891.0,0.0522759]
[1733672959715,0.23009726,99892.0,99891.0,0.06666682]
[1733672959912,0.27875573,99892.0,99891.0,0.06666682]
[1733672960116,0.09867647,99892.0,99891.0,0.06666682]
[1733672960311,0.10867647,99892.0,99891.0,0.02164782]
[1733672960613,0.24009957,99892.0,99891.0,0.02164782]
[1733672960819,0.10867647,99892.0,99891.0,0.0604099]
[1733672961006,0.09867647,99892.0,99891.0,0.0604099]
[1733672961416,0.23009736,99892.0,99891.0,0.0604099]
[1733672961609,0.09867647,99892.0,99891.0,0.0604099]
[1733672961816,0.09867647,99892.0,99891.0,0.06666681]
[1733672963019,0.09867644,99892.0,99891.0,0.054153]
[1733672964722,0.23009611,99892.0,99891.0,0.054153]
[1733672964911,0.27875455,99892.0,99891.0,0.054153]
[1733672965513,0.09867644,99892.0,99891.0,0.054153]
[1733672965912,0.09867644,99892.0,99891.0,0.06040987]
[1733672966313,0.09867644,99892.0,99891.0,0.06040989]
[1733672966921,0.09867644,99892.0,99891.0,0.05415298]
[1733672967124,0.2300948,99892.0,99891.0,0.05415298]
[1733672967414,0.09867644,99892.0,99891.0,0.05415298]
[1733672968416,0.09867644,99892.0,99891.0,0.046019]
[1733672968635,0.09867644,99892.0,99891.0,0.05415293]
[1733672968917,0.09867644,99892.0,99891.0,0.0604098]
[1733672970908,0.27875069,99892.0,99891.0,0.0604098]
[1733672972320,0.27875131,99892.0,99891.0,0.0604098]
[1733672973322,0.09867706,99892.0,99891.0,0.0604098]
[1733672973712,0.12867706,99892.0,99891.0,0.0153908]
[1733672973913,0.440818,99892.0,99891.0,0.0153908]
[1733672974223,0.63173025,99892.0,99891.0,0.0153908]
[1733672975724,0.045021,99886.0,99885.0,0.01261496]
[1733672975918,0.045021,99886.0,99882.0,0.3611596]
[1733672975919,0.045023,99883.0,99882.0,0.3608]
[1733672976116,0.22513814,99883.0,99882.0,0.3608]
[1733672976313,0.27379976,99883.0,99882.0,0.3608]
[1733672976620,0.28379976,99883.0,99882.0,0.3608]
[1733672976817,0.28379977,99883.0,99882.0,0.3608]
[1733672977323,0.10668463,99883.0,99882.0,0.3618]
[1733672978522,0.10868463,99883.0,99882.0,0.3618]
[1733672979422,0.10868463,99883.0,99882.0,0.001]
[1733672980730,0.24986293,99883.0,99882.0,0.001]
[1733672981518,0.24937539,99883.0,99882.0,0.001]
[1733672984927,0.10869096,99883.0,99882.0,0.001]
[1733672985114,0.045025,99878.0,99865.0,0.04503]
[1733672985321,0.045029,99869.0,99868.0,0.06315715]
[1733672985515,0.045029,99869.0,99868.0,0.00625829]
[1733672985827,0.045029,99869.0,99868.0,0.01126485]
[1733672986224,0.045029,99869.0,99868.0,0.05629385]
[1733672986923,0.048029,99869.0,99868.0,0.05629385]
[1733672987125,0.050029,99869.0,99868.0,0.05629385]
[1733672987737,0.050029,99869.0,99868.0,0.01439394]
[1733672988027,0.10869802,99869.0,99868.0,0.01439394]
[1733672988218,0.10869802,99869.0,99868.0,0.00813565]
[1733672989327,0.28857724,99869.0,99868.0,0.00813565]
[1733672989831,0.28844225,99869.0,99868.0,0.00813629]
[1733672990230,0.10869802,99869.0,99868.0,0.0062586]
[1733672990525,0.10869802,99869.0,99868.0,0.00813673]
[1733672990733,0.10870411,99869.0,99868.0,0.00312951]
[1733672990924,0.28844618,99869.0,99868.0,0.00312951]
[1733672991133,0.045038,99849.0,99848.0,0.01035931]
[1733672991329,0.14976015,99857.0,99841.0,0.00035931]
[1733672991629,0.045041,99842.0,99841.0,0.0569072]
[1733672991827,0.045041,99842.0,99841.0,0.05741706]
[1733672992025,0.045041,99842.0,99841.0,0.06367682]
[1733672992223,0.045041,99842.0,99841.0,0.06868463]
[1733672993028,0.055041,99842.0,99841.0,0.01300781]
[1733672993730,0.055041,99842.0,99841.0,0.008]
[1733672993929,0.055041,99842.0,99841.0,0.011]
[1733672994729,0.055041,99842.0,99841.0,0.009]
[1733672995235,0.055041,99842.0,99841.0,0.005]
[1733672997327,0.045041,99842.0,99841.0,0.005]
[1733672997631,0.045041,99842.0,99841.0,0.050041]
[1733672998131,0.08962237,99844.0,99843.0,0.045041]
[1733672998724,0.08962237,99844.0,99843.0,0.05004909]
[1733672998932,0.08962237,99844.0,99843.0,0.045041]
[1733672999429,0.08962237,99844.0,99843.0,0.05404911]
[1733672999737,0.13466237,99844.0,99843.0,0.00900811]
[1733673000133,0.15466237,99844.0,99843.0,0.00900811]
[1733673000331,0.15466237,99844.0,99843.0,0.004]
[1733673000937,0.13466237,99844.0,99843.0,0.004]
[1733673003136,0.13466237,99844.0,99843.0,0.00713029]
[1733673003335,0.22429399,99844.0,99843.0,0.00713029]
[1733673003631,0.13466237,99844.0,99843.0,0.00713029]
[1733673004433,0.22429548,99844.0,99843.0,0.00713029]
[1733673004633,0.13466237,99844.0,99843.0,0.00713029]
[1733673005032,0.08962087,99846.0,99843.0,0.00713029]
[1733673005233,0.36132001,99853.0,99844.0,0.20218997]
[1733673005430,0.36132001,99853.0,99852.0,0.045036]
[1733673005431,0.3608,99853.0,99852.0,0.045036]
[1733673005743,0.3608,99853.0,99852.0,0.04816629]
[1733673005933,0.3608,99853.0,99852.0,0.05317453]
[1733673006332,0.405836,99853.0,99852.0,0.01439775]
[1733673006532,0.405836,99853.0,99852.0,0.00813853]
[1733673006941,0.406836,99853.0,99852.0,0.00813853]
[1733673008039,0.406836,99853.0,99852.0,0.0200677]
[1733673008244,0.406836,99853.0,99852.0,0.00813742]
[1733673009443,0.406836,99853.0,99852.0,0.01439699]
[1733673009943,0.406836,99853.0,99852.0,0.02622165]
[1733673011749,0.406836,99853.0,99852.0,0.01439699]
[1733673012142,0.406836,99853.0,99852.0,0.00813742]
[1733673013146,0.406836,99853.0,99852.0,0.00500764]
[1733673013352,0.406836,99853.0,99852.0,0.00500748]
[1733673013353,0.52657539,99853.0,99852.0,0.00500748]
[1733673013667,0.406836,99853.0,99852.0,0.05317316]
[1733673013949,0.3618,99853.0,99852.0,0.05943252]
[1733673014144,0.3618,99853.0,99852.0,0.05129536]
[1733673015239,0.3618,99853.0,99852.0,0.05943222]
[1733673015447,0.3618,99853.0,99852.0,0.06569135]
[1733673015637,0.3608,99853.0,99852.0,0.06569135]
[1733673016849,0.3608,99853.0,99852.0,0.06769135]
[1733673017443,0.3608,99853.0,99852.0,0.06569135]
[1733673017851,0.045036,99854.0,99853.0,0.045036]
[1733673018147,0.045036,99854.0,99853.0,0.05943199]
[1733673018747,0.045036,99854.0,99853.0,0.01439599]
[1733673019449,0.045036,99854.0,99853.0,0.01439577]
[1733673019951,0.16577539,99854.0,99853.0,0.01439577]
[1733673020346,0.047036,99854.0,99853.0,0.01439577]
[1733673020548,0.057036,99854.0,99853.0,0.01439577]
[1733673020744,0.10571582,99854.0,99853.0,0.00813674]
[1733673021044,0.045042,99840.0,99839.0,0.00035911]
[1733673021249,0.02,99840.0,99835.0,0.00035911]
[1733673021451,0.045044,99836.0,99835.0,0.00035911]
[1733673021641,0.045044,99836.0,99831.0,0.00010872]
[1733673021642,0.045045,99832.0,99831.0,0.00010872]
[1733673023047,0.045045,99832.0,99831.0,0.00310872]
[1733673023842,0.00052001,99837.0,99831.0,0.00310872]
[1733673024045,0.045042,99839.0,99831.0,0.01110872]
[1733673024046,0.11985796,99834.0,99831.0,0.01110872]
[1733673024243,0.11985796,99836.0,99834.0,0.045045]
[1733673024451,0.11985796,99836.0,99835.0,0.045044]
[1733673024659,0.11985796,99836.0,99833.0,0.00035913]
[1733673024660,0.045042,99839.0,99838.0,0.045043]
[1733673024845,0.11985796,99841.0,99840.0,0.045042]
[1733673025045,0.0935,99842.0,99837.0,0.3608]
[1733673025046,0.0935,99842.0,99841.0,0.045041]
[1733673025244,0.138541,99842.0,99841.0,0.045041]
[1733673027150,0.138541,99842.0,99841.0,0.049041]
[1733673027151,0.25839896,99842.0,99841.0,0.049041]
[1733673027749,0.25839896,99842.0,99841.0,0.050041]
[1733673028754,0.0935,99842.0,99841.0,0.050041]
[1733673028953,0.0935,99842.0,99841.0,0.05630077]
[1733673029153,0.0935,99842.0,99841.0,0.06868462]
[1733673029358,0.138541,99842.0,99841.0,0.02364362]
[1733673029551,0.138541,99842.0,99841.0,0.01125977]
[1733673030955,0.138541,99842.0,99841.0,0.016268]
[1733673031360,0.158541,99842.0,99841.0,0.02793563]
[1733673031758,0.158541,99842.0,99841.0,0.016268]
[1733673031958,0.045045,99832.0,99831.0,0.04515472]
[1733673033063,0.045045,99832.0,99831.0,0.04828498]
[1733673033464,0.045045,99832.0,99831.0,0.05628498]
[1733673033760,0.045045,99832.0,99831.0,0.05928498]
[1733673034758,0.045045,99832.0,99831.0,0.07104572]
[1733673035666,0.045045,99832.0,99831.0,0.02599972]
[1733673036959,0.045045,99832.0,99831.0,0.01423898]
[1733673039963,0.045045,99832.0,99831.0,0.02049947]
[1733673040763,0.045045,99832.0,99831.0,0.01749947]
[1733673040967,0.045045,99832.0,99831.0,0.02049947]
[1733673041170,0.045045,99832.0,99831.0,0.01649947]
[1733673042072,0.045045,99832.0,99831.0,0.02150782]
[1733673042665,0.045045,99832.0,99831.0,0.01950782]
[1733673044878,0.045045,99832.0,99831.0,0.06455382]
[1733673045767,0.045045,99832.0,99831.0,0.05015472]
[1733673045978,0.11989977,99834.0,99833.0,0.045045]
[1733673046168,0.0935,99842.0,99833.0,0.045045]
[1733673046169,0.11988016,99841.0,99833.0,0.06054222]
[1733673046475,0.0935,99842.0,99841.0,0.045041]
[1733673046676,0.0935,99842.0,99841.0,0.05443166]
[1733673047063,0.0935,99842.0,99841.0,0.07180561]
[1733673047667,0.138541,99842.0,99841.0,0.05944001]
[1733673048771,0.139541,99842.0,99841.0,0.05944001]
[1733673049171,0.25942116,99842.0,99841.0,0.05944001]
[1733673049367,0.25942116,99842.0,99841.0,0.07129427]
[1733673049368,0.0945,99842.0,99841.0,0.07129427]
[1733673049572,0.21445844,99842.0,99841.0,0.07129427]
[1733673049875,0.21445844,99842.0,99841.0,0.08365704]
[1733673050176,0.0945,99842.0,99841.0,0.07129427]
[1733673050767,0.21448072,99842.0,99841.0,0.07129427]
[1733673051182,0.0945,99842.0,99841.0,0.07129427]
[1733673053068,0.0945,99842.0,99841.0,0.07129231]
[1733673053263,0.139541,99842.0,99841.0,0.07165105]
[1733673053480,0.139541,99842.0,99841.0,0.07129231]
[1733673053776,0.25952172,99842.0,99841.0,0.07129231]
[1733673055679,0.139541,99842.0,99841.0,0.07129231]
[1733673056075,0.25952172,99842.0,99841.0,0.07129231]
[1733673056372,0.0945,99842.0,99841.0,0.07129231]
[1733673057680,0.001,99842.0,99841.0,0.17145106]
[1733673058179,0.0972,99862.0,99861.0,0.045032]
[1733673058374,0.0972,99862.0,99861.0,0.05316946]
[1733673058573,0.0972,99862.0,99861.0,0.05942801]
[1733673058766,0.292144,99862.0,99861.0,0.05316946]
[1733673058972,0.142232,99862.0,99861.0,0.05316946]
[1733673060274,0.1022,99862.0,99861.0,0.05316946]
[1733673060474,0.1022,99862.0,99861.0,0.41396946]
[1733673060768,0.1042,99862.0,99861.0,0.41396946]
[1733673061175,0.1042,99862.0,99861.0,0.52036643]
[1733673062283,0.1042,99862.0,99861.0,0.52036473]
[1733673062884,0.1042,99862.0,99861.0,0.53214372]
[1733673064089,0.007,99862.0,99861.0,0.53214372]
[1733673064293,0.0917,99873.0,99872.0,0.045027]
[1733673064479,0.0917,99873.0,99872.0,0.42022036]
[1733673065380,0.0937,99873.0,99872.0,0.42022036]
[1733673065887,0.0977,99873.0,99872.0,0.42122036]
[1733673066275,0.006,99873.0,99872.0,0.52134802]
[1733673067085,0.11989021,99890.0,99888.0,0.04502]
[1733673067479,0.0994,99891.0,99890.0,0.045019]
[1733673067786,0.0994,99891.0,99890.0,0.04814814]
[1733673069874,0.0994,99891.0,99890.0,0.059642]
[1733673070090,0.0994,99891.0,99890.0,0.068642]
[1733673070291,0.0994,99891.0,99890.0,0.06864132]
[1733673071285,0.0994,99891.0,99890.0,0.07664132]
[1733673073188,0.10011783,99900.0,99899.0,0.045015]
[1733673073390,0.10011783,99900.0,99899.0,0.413948]
[1733673073805,0.10011783,99900.0,99899.0,0.41394729]
[1733673074200,0.10011783,99900.0,99899.0,0.51405691]
[1733673075201,0.10011783,99900.0,99899.0,0.51092911]
[1733673075403,0.10011783,99900.0,99899.0,0.50592462]
[1733673075598,0.10011783,99900.0,99899.0,0.5140568]
[1733673076304,0.10011783,99900.0,99899.0,0.5150568]
[1733673076698,0.10011783,99900.0,99899.0,0.5140568]
[1733673078613,0.10011783,99900.0,99899.0,0.41394718]
[1733673079103,0.10011783,99900.0,99899.0,0.51404778]
[1733673081913,0.00056001,99922.0,99921.0,0.045005]
[1733673082213,0.0911,99936.0,99935.0,0.044999]
[1733673082402,0.0911,99936.0,99935.0,0.04812621]
[1733673082601,0.0978,99941.0,99940.0,0.044997]
[1733673082804,0.0978,99941.0,99940.0,0.04812421]
[1733673083013,0.0978,99941.0,99940.0,0.04821662]
[1733673083221,0.0978,99941.0,99940.0,0.14829518]
[1733673083723,0.0978,99941.0,99940.0,0.00822259]
[1733673084020,0.044999,99936.0,99920.0,0.09626212]
[1733673084217,0.0978,99941.0,99923.0,0.045004]
[1733673084519,0.0978,99941.0,99922.0,0.00035712]
[1733673084520,0.0978,99941.0,99940.0,0.14505653]
[1733673084714,0.0978,99941.0,99940.0,0.044997]
[1733673084919,0.0978,99941.0,99940.0,0.04509722]
[1733673085516,0.0978,99941.0,99940.0,0.14516877]
[1733673085517,0.142796,99941.0,99940.0,0.14516877]
[1733673085717,0.142796,99941.0,99940.0,0.04509722]
[1733673085914,0.0978,99941.0,99930.0,0.3608]
[1733673086115,0.3608,99943.0,99930.0,0.45706212]
[1733673086319,0.0911,99948.0,99930.0,0.45706212]
[1733673086320,0.0911,99948.0,99947.0,0.044994]
[1733673086916,0.0911,99948.0,99947.0,0.145131]
[1733673087812,0.0931,99948.0,99947.0,0.146131]
[1733673088011,0.0931,99948.0,99947.0,0.04606746]
[1733673090421,0.0931,99948.0,99947.0,0.00107346]
[1733673090620,0.138094,99948.0,99947.0,0.044994]
[1733673090822,0.044996,99943.0,99938.0,0.011268]
[1733673091024,0.044996,99943.0,99940.0,0.044997]
[1733673091527,0.044996,99943.0,99941.0,0.00011324]
[1733673091829,0.044996,99943.0,99941.0,0.04510924]
[1733673093026,0.046996,99943.0,99941.0,0.04510924]
[1733673093215,0.002,99943.0,99941.0,0.04510924]
[1733673093418,0.002,99943.0,99942.0,0.10005803]
[1733673093827,0.002,99943.0,99942.0,0.1050608]
[1733673094124,0.0911,99948.0,99942.0,0.4658608]
[1733673094326,0.48009855,99966.0,99943.0,0.0050023]
[1733673094524,0.36132001,99966.0,99960.0,0.044988]
[1733673094733,0.3608,99966.0,99960.0,0.044988]
[1733673094921,0.3608,99966.0,99960.0,0.14504303]
[1733673095228,0.3608,99966.0,99960.0,0.15004506]
[1733673095427,0.044984,99969.0,99960.0,0.15004506]
[1733673095630,0.11929855,99971.0,99960.0,0.15004506]
[1733673095823,0.11929855,99971.0,99960.0,0.15317118]
[1733673096426,0.0971,99973.0,99960.0,0.15917118]
[1733673096427,0.044988,99962.0,99960.0,0.15917118]
[1733673096633,0.044988,99962.0,99960.0,0.17025752]
[1733673097428,0.11929855,99969.0,99960.0,0.07920249]
[1733673097629,0.044985,99968.0,99960.0,0.07920249]
[1733673097828,0.044985,99968.0,99960.0,0.17924212]
[1733673099529,0.0971,99973.0,99960.0,0.17924212]
[1733673099530,0.044983,99972.0,99960.0,0.17924212]
[1733673100634,0.044983,99971.0,99960.0,0.17924212]
[1733673101029,0.044983,99971.0,99960.0,0.17124212]
[1733673102130,0.21639855,99973.0,99960.0,0.17124212]
[1733673102131,0.0971,99973.0,99960.0,0.17124212]
[1733673102321,0.11929855,99972.0,99960.0,0.16524212]
[1733673102526,0.044986,99965.0,99960.0,0.16524212]
[1733673104227,0.044986,99965.0,99960.0,0.16559847]
[1733673104427,0.11929855,99971.0,99960.0,0.16524212]
[1733673104625,0.16428255,99970.0,99960.0,0.15711385]
[1733673104825,0.044984,99969.0,99960.0,0.16024]
[1733673105033,0.044984,99969.0,99960.0,0.16524185]